bitfinex-derivatives/quotes_BTCF0:USTF0_20250901
["timestamp","ask_amount","ask_price","bid_price","bid_amount"]
[1756716590023,0.02755625,109710.0,109700.0,0.58714493]
[1756716590224,0.05707595,109710.0,109700.0,1.23673956]
[1756716590432,0.02455625,109710.0,109700.0,1.48673956]
[1756716590623,0.02655625,109710.0,109700.0,1.48673956]
[1756716590827,0.02655625,109710.0,109700.0,2.33109956]
[1756716591323,0.02655625,109710.0,109700.0,1.48673956]
[1756716591628,0.02655625,109710.0,109700.0,2.33105956]
[1756716591926,0.02555625,109710.0,109700.0,1.48673956]
[1756716592128,0.02555625,109710.0,109700.0,2.33105956]
[1756716592630,0.02555625,109710.0,109700.0,2.33101956]
[1756716595132,0.02555625,109710.0,109700.0,2.33097956]
[1756716596634,0.02555625,109710.0,109700.0,1.48673956]
[1756716596935,0.02555625,109710.0,109700.0,2.33089956]
[1756716597737,0.02555625,109710.0,109700.0,2.59539956]
[1756716598427,0.02555625,109710.0,109700.0,1.75123956]
[1756716598629,0.02555625,109710.0,109700.0,2.59535956]
[1756716599439,0.02555625,109710.0,109700.0,2.34535956]
[1756716600937,0.02555625,109710.0,109700.0,2.34990956]
[1756716602232,0.40987595,109730.0,109720.0,0.0911331]
[1756716602233,0.04532914,109730.0,109720.0,0.0911331]
[1756716602541,0.05927914,109730.0,109720.0,0.74694485]
[1756716603544,0.06327914,109730.0,109720.0,0.74694485]
[1756716603742,0.06427914,109730.0,109720.0,0.74694485]
[1756716605240,0.06427914,109730.0,109720.0,0.81963901]
[1756716606234,0.02367,109730.0,109720.0,0.81963901]
[1756716606437,0.02367,109730.0,109720.0,0.82868222]
[1756716606635,0.02367,109730.0,109720.0,1.09318222]
[1756716607643,0.02367,109730.0,109720.0,1.00204912]
[1756716608041,0.02367,109730.0,109720.0,1.09318222]
[1756716609750,0.005,109730.0,109720.0,1.09318222]
[1756716613545,0.005,109730.0,109720.0,1.98589603]
[1756716613741,0.005,109730.0,109720.0,1.98593603]
[1756716614040,0.005,109730.0,109720.0,1.14213603]
[1756716614245,0.005,109730.0,109720.0,1.98589603]
[1756716614634,0.005,109730.0,109720.0,1.89476293]
[1756716614834,0.36952,109740.0,109720.0,1.89476293]
[1756716615038,0.001,109730.0,109720.0,1.7928012]
[1756716616135,0.001,109730.0,109720.0,2.35124613]
[1756716617347,0.001,109730.0,109720.0,2.30233232]
[1756716617642,0.3618,109740.0,109720.0,2.35785552]
[1756716617848,0.3618,109740.0,109730.0,0.34834973]
[1756716618047,0.3618,109740.0,109730.0,0.70834973]
[1756716618442,0.3608,109740.0,109730.0,0.70834973]
[1756716618643,0.38347,109750.0,109740.0,0.03648]
[1756716618948,0.40249112,109750.0,109740.0,0.83432986]
[1756716619943,0.04169112,109750.0,109740.0,0.83432986]
[1756716620145,0.00872,109760.0,109740.0,1.24976386]
[1756716620451,0.38347,109760.0,109750.0,0.25668493]
[1756716620751,0.38347,109760.0,109750.0,0.70779313]
[1756716621347,0.02267,109760.0,109750.0,0.70779313]
[1756716621856,0.02267,109760.0,109750.0,0.61668493]
[1756716622047,0.01695,109760.0,109750.0,0.70779323]
[1756716622746,0.01995,109760.0,109750.0,0.70779323]
[1756716623152,0.006,109760.0,109750.0,0.70779323]
[1756716623451,0.01995,109760.0,109750.0,0.70779323]
[1756716624153,0.02867,109760.0,109750.0,0.38668493]
[1756716624454,0.02867,109760.0,109750.0,0.56668493]
[1756716624653,0.01895,109760.0,109750.0,0.65779313]
[1756716625554,0.005,109760.0,109750.0,0.65779313]
[1756716626155,0.02398231,109760.0,109750.0,0.65779313]
[1756716627254,0.03793231,109760.0,109750.0,0.56668493]
[1756716627459,0.85509724,109760.0,109750.0,0.12256]
[1756716627650,0.02267,109750.0,109740.0,0.04129976]
[1756716627851,1.44361724,109750.0,109740.0,0.07777976]
[1756716628051,1.69361724,109750.0,109740.0,0.04129976]
[1756716628658,1.49597231,109750.0,109740.0,0.04129976]
[1756716628847,1.49797231,109750.0,109740.0,0.27542469]
[1756716629052,1.49897231,109750.0,109740.0,0.27542469]
[1756716633565,1.49897231,109750.0,109740.0,0.63542469]
[1756716634460,1.24897231,109750.0,109740.0,0.63542469]
[1756716636167,1.22799,109750.0,109740.0,0.63542469]
[1756716636666,1.22799,109750.0,109740.0,0.27542469]
[1756716637058,1.22799,109750.0,109740.0,0.62542469]
[1756716637263,0.38447,109750.0,109740.0,0.27542469]
[1756716637460,1.22847,109750.0,109740.0,0.64542469]
[1756716637668,1.22847,109750.0,109740.0,0.07777976]
[1756716637962,1.22847,109750.0,109740.0,0.62542469]
[1756716638769,0.38447,109750.0,109740.0,0.62542469]
[1756716638964,0.02367,109750.0,109740.0,0.91418632]
[1756716639162,0.86891,109750.0,109740.0,0.71654139]
[1756716639358,0.86891,109750.0,109740.0,0.91418632]
[1756716639558,1.22971,109750.0,109740.0,0.47761962]
[1756716639762,0.02367,109750.0,109740.0,0.59997469]
[1756716640069,1.22963,109750.0,109740.0,0.02328976]
[1756716640268,1.22963,109750.0,109740.0,0.22093469]
[1756716640569,1.24866482,109750.0,109740.0,0.24349469]
[1756716640957,1.24866482,109750.0,109740.0,0.27997469]
[1756716641468,1.24866482,109750.0,109740.0,0.24349469]
[1756716641664,1.24866482,109750.0,109740.0,0.22093469]
[1756716641965,1.69630975,109750.0,109730.0,0.01815986]
[1756716642164,0.56928493,109740.0,109730.0,0.01815986]
[1756716642362,0.39067482,109740.0,109730.0,0.04071986]
[1756716642763,0.58831975,109740.0,109730.0,0.01815986]
[1756716643469,1.03596468,109740.0,109720.0,0.149278]
[1756716643659,1.03596468,109740.0,109720.0,0.06754063]
[1756716643660,1.41564493,109730.0,109720.0,0.06754063]
[1756716643867,1.43467975,109730.0,109720.0,0.06754063]
[1756716644069,1.43467975,109730.0,109720.0,0.01862682]
[1756716644762,1.43467975,109730.0,109720.0,0.02062682]
[1756716644961,1.48703482,109730.0,109720.0,0.02062682]
[1756716645266,1.68467975,109730.0,109720.0,0.02062682]
[1756716645466,1.48703482,109730.0,109720.0,0.02062682]
[1756716645668,1.68467975,109730.0,109720.0,0.02062682]
[1756716645870,1.48703482,109730.0,109720.0,0.02062682]
[1756716646273,1.68467975,109730.0,109720.0,0.07054063]
[1756716646661,1.48703482,109730.0,109720.0,0.07054063]
[1756716646862,1.68467975,109730.0,109720.0,0.07054063]
[1756716647068,1.48703482,109730.0,109720.0,0.06854063]
[1756716647268,1.68567975,109730.0,109720.0,0.06754063]
[1756716647571,1.68567975,109730.0,109720.0,4e-05]
[1756716648271,1.48803482,109730.0,109720.0,4e-05]
[1756716648473,1.68567975,109730.0,109720.0,4e-05]
[1756716649670,1.68567975,109730.0,109710.0,0.05822272]
[1756716649871,0.56918493,109720.0,109710.0,0.05822272]
[1756716650076,0.58962219,109720.0,109710.0,0.05822272]
[1756716650876,0.59890517,109720.0,109710.0,0.04991381]
[1756716651076,0.59890517,109720.0,109710.0,0.05091381]
[1756716651274,0.84890517,109720.0,109710.0,0.05091381]
[1756716651675,1.0465501,109720.0,109710.0,0.04678381]
[1756716651884,0.84890517,109720.0,109710.0,0.001]
[1756716652083,0.84890517,109720.0,109710.0,0.002]
[1756716652283,0.86810191,109720.0,109710.0,0.002]
[1756716652682,2.79414191,109720.0,109710.0,0.002]
[1756716652983,2.77494517,109720.0,109710.0,0.002]
[1756716653181,3.62238517,109720.0,109710.0,0.002]
[1756716653889,3.83922198,109720.0,109710.0,0.002]
[1756716654092,2.99178198,109720.0,109710.0,0.002]
[1756716654282,3.64129705,109720.0,109710.0,0.002]
[1756716654690,3.71435572,109720.0,109710.0,0.002]
[1756716655188,3.62210517,109720.0,109710.0,0.002]
[1756716655987,3.64129408,109720.0,109710.0,0.002]
[1756716656180,3.62174517,109720.0,109710.0,0.002]
[1756716657584,3.62178517,109720.0,109710.0,0.002]
[1756716657788,2.77494517,109720.0,109710.0,0.002]
[1756716657992,3.62146517,109720.0,109710.0,0.002]
[1756716658883,2.77494517,109720.0,109710.0,0.002]
[1756716659090,3.62142517,109720.0,109710.0,0.002]
[1756716659288,2.52494517,109720.0,109710.0,0.002]
[1756716659592,3.37138517,109720.0,109710.0,0.002]
[1756716660092,3.44532599,109720.0,109710.0,0.002]
[1756716660696,3.64297092,109720.0,109710.0,0.002]
[1756716660884,2.40124106,109720.0,109710.0,0.002]
[1756716661085,3.44520599,109720.0,109710.0,0.002]
[1756716661285,2.40124106,109720.0,109710.0,0.02592]
[1756716661485,2.59888599,109720.0,109710.0,0.06131]
[1756716661793,3.44800599,109720.0,109710.0,0.06131]
[1756716662093,2.59888599,109720.0,109710.0,0.06131]
[1756716662296,3.44840599,109720.0,109710.0,0.06131]
[1756716662791,2.59888599,109720.0,109710.0,0.06131]
[1756716662993,2.58960301,109720.0,109710.0,0.06131]
[1756716663389,3.43916301,109720.0,109710.0,0.06131]
[1756716663893,2.58960301,109720.0,109710.0,0.06131]
[1756716664193,3.43916301,109720.0,109710.0,0.06131]
[1756716667191,3.43916301,109720.0,109710.0,0.02592]
[1756716667895,3.43916301,109720.0,109710.0,0.06131]
[1756716668789,2.31801726,109720.0,109710.0,0.50895493]
[1756716668995,3.16777726,109720.0,109710.0,0.50895493]
[1756716669194,3.16777726,109720.0,109710.0,0.31131]
[1756716669396,3.16777726,109720.0,109710.0,0.50895493]
[1756716670194,3.16777726,109720.0,109710.0,0.88895493]
[1756716670395,3.16777726,109720.0,109710.0,0.50895493]
[1756716670698,3.16777726,109720.0,109710.0,0.31131]
[1756716672598,3.16777726,109720.0,109710.0,0.50895493]
[1756716672799,3.16777726,109720.0,109710.0,0.37681263]
[1756716673498,3.16777726,109720.0,109710.0,0.27592]
[1756716673693,3.36542219,109720.0,109710.0,0.34142263]
[1756716674296,3.36542219,109720.0,109710.0,0.06750263]
[1756716674694,3.36542219,109720.0,109710.0,0.09142263]
[1756716674895,3.36542219,109720.0,109710.0,0.06750263]
[1756716675498,3.36542219,109720.0,109710.0,0.09142263]
[1756716676196,3.38458694,109720.0,109710.0,0.07508485]
[1756716676900,3.38458694,109720.0,109710.0,0.11047485]
[1756716680203,3.38458694,109720.0,109710.0,0.06131]
[1756716680604,2.53482694,109720.0,109710.0,0.02592]
[1756716680902,3.38374694,109720.0,109710.0,0.02592]
[1756716681098,3.18610201,109720.0,109710.0,0.02592]
[1756716681303,3.38374694,109720.0,109710.0,0.02592]
[1756716681901,3.38374694,109720.0,109710.0,0.06219]
[1756716682101,3.38338694,109720.0,109710.0,0.06219]
[1756716682505,3.18574201,109720.0,109710.0,0.06219]
[1756716682706,3.18574201,109720.0,109710.0,0.25983493]
[1756716682906,3.18574201,109720.0,109710.0,0.06219]
[1756716685707,3.18574201,109720.0,109710.0,0.25983493]
[1756716686806,3.18578201,109720.0,109710.0,0.25983493]
[1756716691106,3.38342694,109720.0,109710.0,0.002]
[1756716691303,1.45738694,109720.0,109710.0,0.002]
[1756716691505,1.90503187,109720.0,109710.0,0.002]
[1756716692312,1.05643187,109720.0,109710.0,0.002]
[1756716692614,1.90479187,109720.0,109710.0,0.002]
[1756716696111,1.97746416,109720.0,109710.0,0.002]
[1756716697210,0.3588,109710.0,109700.0,0.00459]
[1756716697411,0.77325461,109710.0,109700.0,0.00459]
[1756716697814,1.02325461,109710.0,109700.0,0.00459]
[1756716699013,1.87137461,109710.0,109700.0,0.00659]
[1756716700621,1.87137461,109710.0,109700.0,0.00759]
[1756716702215,2.06901954,109710.0,109670.0,0.07246485]
[1756716702415,1.11688986,109680.0,109670.0,0.07246485]
[1756716702616,1.98511137,109680.0,109670.0,0.07246485]
[1756716702818,1.98511137,109680.0,109670.0,0.0233]
[1756716703218,1.14618313,109680.0,109670.0,0.0233]
[1756716703418,1.7968982,109680.0,109670.0,0.05957]
[1756716703918,0.9485382,109680.0,109670.0,0.05957]
[1756716704220,1.7967382,109680.0,109670.0,0.05957]
[1756716704621,1.7967382,109680.0,109670.0,0.06057]
[1756716705221,1.7967382,109680.0,109670.0,0.10973485]
[1756716705917,0.74170151,109680.0,109670.0,0.10973485]
[1756716706112,1.78750644,109680.0,109670.0,0.10973485]
[1756716707415,1.78830644,109680.0,109670.0,0.10973485]
[1756716707615,0.93934644,109680.0,109670.0,0.10973485]
[1756716708315,1.79058644,109680.0,109670.0,0.10977485]
[1756716708519,0.93934644,109680.0,109670.0,0.10977485]
[1756716708719,1.79058644,109680.0,109670.0,0.11077485]
[1756716709222,0.93934644,109680.0,109670.0,0.11077485]
[1756716709425,1.79030644,109680.0,109670.0,0.11077485]
[1756716709624,1.59266151,109680.0,109670.0,0.11077485]
[1756716709824,0.93934644,109680.0,109670.0,0.11077485]
[1756716710024,1.79030644,109680.0,109670.0,0.36077485]
[1756716711427,1.59266151,109680.0,109670.0,0.36077485]
[1756716711626,1.79030644,109680.0,109670.0,0.36077485]
[1756716718032,1.8096991,109680.0,109670.0,0.31161]
[1756716719329,1.8096991,109680.0,109670.0,0.06161]
[1756716721126,1.8096991,109680.0,109670.0,0.02534]
[1756716721432,2.25734403,109680.0,109670.0,0.00204]
[1756716723823,2.25486403,109680.0,109670.0,0.00204]
[1756716725831,1.15638403,109680.0,109670.0,0.00204]
[1756716726032,2.00498403,109680.0,109670.0,0.00204]
[1756716726226,2.05385497,109680.0,109670.0,0.00204]
[1756716726432,2.05389497,109680.0,109670.0,0.00204]
[1756716726625,1.15638403,109680.0,109670.0,0.00204]
[1756716726826,2.00510403,109680.0,109670.0,0.00204]
[1756716727323,1.60961417,109680.0,109670.0,0.06215]
[1756716727528,1.8072591,109680.0,109670.0,0.06215]
[1756716727729,0.76109417,109680.0,109670.0,0.50979493]
[1756716727925,0.76109417,109680.0,109670.0,0.82979493]
[1756716728132,1.61113417,109680.0,109670.0,0.82979493]
[1756716728530,1.25033417,109680.0,109670.0,0.63215]
[1756716728732,1.25033417,109680.0,109670.0,0.82979493]
[1756716729233,1.25033417,109680.0,109670.0,0.31215]
[1756716729535,1.25033417,109680.0,109670.0,0.83979493]
[1756716729736,1.25033417,109680.0,109670.0,0.50979493]
[1756716730235,1.23023266,109680.0,109670.0,0.50979493]
[1756716730936,0.38019266,109680.0,109670.0,0.50979493]
[1756716731243,1.22999266,109680.0,109670.0,0.50979493]
[1756716731937,1.22999266,109680.0,109670.0,0.84979493]
[1756716732829,0.38019266,109680.0,109670.0,0.84979493]
[1756716733139,1.22987266,109680.0,109670.0,0.84979493]
[1756716736932,1.22927266,109680.0,109670.0,0.84979493]
[1756716737635,1.22927266,109680.0,109670.0,0.94096973]
[1756716740341,0.86847266,109680.0,109670.0,0.94096973]
[1756716741128,0.01939266,109680.0,109670.0,1.1041248]
[1756716741334,0.86787266,109680.0,109670.0,0.94096973]
[1756716741534,0.01939266,109680.0,109670.0,0.94096973]
[1756716741740,0.86767266,109680.0,109670.0,0.94096973]
[1756716742737,2.30776072,109700.0,109670.0,1.76391466]
[1756716743043,2.32689107,109700.0,109690.0,0.25724493]
[1756716743342,3.17481107,109700.0,109690.0,0.59724493]
[1756716744742,2.79345035,109700.0,109690.0,0.93840313]
[1756716744945,0.86673035,109700.0,109690.0,0.59840313]
[1756716745141,1.22753035,109700.0,109690.0,0.59840313]
[1756716745447,0.86673035,109700.0,109690.0,0.95840313]
[1756716746442,0.86873035,109700.0,109690.0,0.95840313]
[1756716746740,0.86973035,109700.0,109690.0,0.95840313]
[1756716747146,0.86773035,109700.0,109690.0,1.03076803]
[1756716747545,0.86673035,109700.0,109690.0,1.03176803]
[1756716747754,0.86673035,109700.0,109690.0,1.00176803]
[1756716748747,0.86673035,109700.0,109690.0,0.4741231]
[1756716748942,0.86673035,109700.0,109690.0,0.98176803]
[1756716749247,0.86621035,109700.0,109690.0,0.98176803]
[1756716749438,0.86621035,109700.0,109690.0,1.00176803]
[1756716751044,0.86621035,109700.0,109690.0,0.67176803]
[1756716751345,0.86621035,109700.0,109690.0,1.04176803]
[1756716752144,1.22701035,109700.0,109690.0,0.67176803]
[1756716752445,1.22701035,109700.0,109690.0,1.05176803]
[1756716752648,0.86621035,109700.0,109690.0,1.05176803]
[1756716753950,0.84708,109700.0,109690.0,1.10093288]
[1756716754240,0.84708,109700.0,109690.0,0.62977468]
[1756716754444,0.84708,109700.0,109690.0,0.93977468]
[1756716754843,0.84708,109700.0,109690.0,0.62977468]
[1756716755047,0.84708,109700.0,109690.0,1.00977468]
[1756716755341,1.20788,109700.0,109690.0,1.00977468]
[1756716755747,0.84708,109700.0,109690.0,1.00977468]
[1756716755942,1.20788,109700.0,109690.0,1.00977468]
[1756716756142,1.20788,109700.0,109690.0,0.43212975]
[1756716756447,1.40552493,109700.0,109690.0,0.14573975]
[1756716756643,1.40552493,109700.0,109690.0,0.0965749]
[1756716756845,1.20788,109700.0,109690.0,0.0965749]
[1756716757248,1.20788,109700.0,109690.0,0.1329649]
[1756716758146,1.40552493,109700.0,109690.0,0.02521]
[1756716758350,1.40552493,109700.0,109690.0,0.002]
[1756716758538,1.67547817,109700.0,109690.0,0.002]
[1756716758742,1.69461483,109700.0,109690.0,0.002]
[1756716758939,1.67547817,109700.0,109690.0,0.002]
[1756716759246,1.68135817,109700.0,109690.0,0.002]
[1756716759744,1.70049397,109700.0,109690.0,0.002]
[1756716760048,1.68135817,109700.0,109690.0,0.002]
[1756716760445,0.84752568,109700.0,109690.0,0.001]
[1756716760653,1.68175817,109700.0,109690.0,0.001]
[1756716761052,1.68275817,109700.0,109680.0,0.10876485]
[1756716761245,0.3608,109690.0,109680.0,0.30640978]
[1756716761849,0.3608,109690.0,109680.0,0.27001978]
[1756716762046,0.55844493,109690.0,109680.0,0.04916485]
[1756716762248,0.55844493,109690.0,109680.0,0.07237485]
[1756716762643,0.55844493,109690.0,109680.0,0.04916485]
[1756716762844,0.55844493,109690.0,109680.0,0.07237485]
[1756716763052,1.41208493,109690.0,109680.0,0.07237485]
[1756716763253,1.41208493,109690.0,109680.0,0.04916485]
[1756716763456,1.41208493,109690.0,109680.0,0.07237485]
[1756716763853,1.41208493,109690.0,109680.0,0.04916485]
[1756716764054,1.41208493,109690.0,109670.0,0.3252689]
[1756716764248,0.3608,109680.0,109670.0,0.4552689]
[1756716765549,0.55844493,109680.0,109670.0,0.25962397]
[1756716765754,0.3608,109680.0,109670.0,0.25962397]
[1756716765955,0.3608,109680.0,109670.0,0.4572689]
[1756716766656,1.21392,109680.0,109670.0,0.40810405]
[1756716767758,0.3608,109680.0,109670.0,0.40810405]
[1756716768058,1.21356,109680.0,109670.0,0.21045912]
[1756716768254,1.21356,109680.0,109670.0,0.40810405]
[1756716768450,1.21356,109680.0,109670.0,0.40710405]
[1756716768754,1.21356,109680.0,109670.0,0.38810405]
[1756716773258,1.41120493,109680.0,109670.0,0.15406912]
[1756716773456,1.41120493,109680.0,109670.0,0.08636175]
[1756716773762,1.66120493,109680.0,109670.0,0.08636175]
[1756716773962,1.66120493,109680.0,109670.0,0.07002329]
[1756716774660,1.85884986,109680.0,109670.0,0.05120417]
[1756716774861,1.66120493,109680.0,109670.0,0.05120417]
[1756716775063,1.67049901,109680.0,109670.0,0.05120417]
[1756716776467,1.66897901,109680.0,109670.0,0.05120417]
[1756716779274,1.41897901,109680.0,109670.0,0.05120417]
[1756716782475,0.3608,109680.0,109670.0,0.11025417]
[1756716782671,0.55844493,109680.0,109670.0,0.11025417]
[1756716782877,1.21132,109680.0,109670.0,0.11025417]
[1756716783075,0.3608,109680.0,109670.0,0.5578991]
[1756716783273,1.21148,109680.0,109670.0,0.92616065]
[1756716783973,1.21148,109680.0,109670.0,0.57616065]
[1756716784168,1.21148,109680.0,109670.0,0.12851572]
[1756716784372,1.40912493,109680.0,109670.0,0.12851572]
[1756716784772,1.42854593,109680.0,109670.0,0.07935155]
[1756716786877,1.42854593,109680.0,109670.0,0.04508155]
[1756716787274,1.42854593,109680.0,109670.0,0.07935155]
[1756716788170,0.57786593,109680.0,109670.0,0.07935155]
[1756716788376,1.42746593,109680.0,109670.0,0.07935155]
[1756716790579,1.42714593,109680.0,109670.0,0.27699648]
[1756716790882,1.229461,109680.0,109670.0,0.27699648]
[1756716791582,1.229461,109680.0,109670.0,0.07935155]
[1756716791782,1.229461,109680.0,109670.0,0.27699648]
[1756716792175,1.42710593,109680.0,109670.0,0.04508155]
[1756716792376,1.42710593,109680.0,109670.0,0.00204]
[1756716793980,1.87475086,109680.0,109670.0,0.00204]
[1756716800887,1.87391086,109680.0,109670.0,0.00204]
[1756716802383,1.02551086,109680.0,109670.0,0.00204]
[1756716802583,1.87323086,109680.0,109670.0,0.00204]
[1756716803384,1.02551086,109680.0,109670.0,0.00204]
[1756716803691,0.57786593,109680.0,109670.0,0.06152]
[1756716803891,1.42546593,109680.0,109670.0,0.06152]
[1756716805092,1.227821,109680.0,109670.0,0.06152]
[1756716805293,1.42554593,109680.0,109670.0,0.06152]
[1756716811585,1.227901,109680.0,109670.0,0.06152]
[1756716811790,1.42554593,109680.0,109670.0,0.06152]
[1756716813196,1.42554593,109680.0,109670.0,0.02459]
[1756716813894,1.227901,109680.0,109670.0,0.02459]
[1756716814094,1.42554593,109680.0,109670.0,0.02459]
[1756716816597,1.27677194,109680.0,109670.0,0.02459]
[1756716816906,1.47441687,109680.0,109670.0,0.02459]
[1756716817309,1.47441687,109680.0,109670.0,0.00204]
[1756716818604,1.47441687,109680.0,109670.0,0.06152]
[1756716819303,1.47441687,109680.0,109670.0,0.02459]
[1756716820103,1.47441687,109680.0,109670.0,0.06152]
[1756716820803,1.47441687,109680.0,109670.0,0.02459]
[1756716822001,1.83521687,109680.0,109670.0,0.02459]
[1756716826003,1.83521687,109680.0,109670.0,0.00204]
[1756716826596,1.78634593,109680.0,109670.0,0.00204]
[1756716826799,0.93866593,109680.0,109670.0,0.02459]
[1756716827104,1.78502593,109680.0,109670.0,0.02459]
[1756716828508,1.78502593,109680.0,109670.0,0.00204]
[1756716829405,1.78502593,109680.0,109670.0,0.02459]
[1756716830810,1.78498593,109680.0,109670.0,0.06025]
[1756716831210,1.587341,109680.0,109670.0,0.06025]
[1756716831409,1.78498593,109680.0,109670.0,0.06025]
[1756716832407,1.78498593,109680.0,109670.0,0.02459]
[1756716832808,1.78517058,109680.0,109670.0,0.00204]
[1756716834108,1.78517058,109680.0,109670.0,0.02574]
[1756716836214,1.78517058,109680.0,109670.0,0.00204]
[1756716837911,1.06357058,109680.0,109670.0,0.00204]
[1756716838217,1.78517058,109680.0,109670.0,0.00204]
[1756716839526,1.78517058,109680.0,109670.0,0.02574]
[1756716839727,1.78517058,109680.0,109670.0,0.00204]
[1756716841020,1.98281551,109680.0,109670.0,0.00204]
[1756716841227,1.78517058,109680.0,109670.0,0.00204]
[1756716843330,0.93885058,109680.0,109670.0,0.00204]
[1756716843532,0.93885058,109680.0,109670.0,0.0614]
[1756716844026,1.78501058,109680.0,109670.0,0.0614]
[1756716844424,1.78501058,109680.0,109670.0,0.02574]
[1756716844728,0.93885058,109680.0,109670.0,0.02574]
[1756716844928,1.78501058,109680.0,109670.0,0.02574]
[1756716848329,1.58736565,109680.0,109670.0,0.02574]
[1756716848530,1.78501058,109680.0,109670.0,0.02574]
[1756716850433,0.93885058,109680.0,109670.0,0.0614]
[1756716850629,1.58728565,109680.0,109670.0,0.85904493]
[1756716850827,1.58728565,109680.0,109670.0,0.50904493]
[1756716852037,1.78493823,109680.0,109670.0,0.50905258]
[1756716852223,1.78493823,109680.0,109670.0,0.3114]
[1756716852427,1.78493823,109680.0,109670.0,0.47339258]
[1756716852927,1.78493823,109680.0,109670.0,0.50905258]
[1756716853936,1.78496488,109680.0,109670.0,0.3114]
[1756716854834,1.78496488,109680.0,109670.0,0.00204]
[1756716855237,1.78496488,109680.0,109670.0,0.02574]
[1756716857536,1.98264411,109680.0,109670.0,0.00204]
[1756716857739,2.23264411,109680.0,109670.0,0.00204]
[1756716858344,2.28151505,109680.0,109670.0,0.00204]
[1756716860341,1.43543505,109680.0,109670.0,0.00204]
[1756716860649,2.28135505,109680.0,109670.0,0.00204]
[1756716860946,2.23244411,109680.0,109670.0,0.00204]
[1756716861245,2.28131505,109680.0,109670.0,0.00204]
[1756716862045,1.43543505,109680.0,109670.0,0.00204]
[1756716862235,2.23248411,109680.0,109670.0,0.00204]
[1756716863846,2.28135505,109680.0,109670.0,0.00204]
[1756716864350,2.23248411,109680.0,109670.0,0.00204]
[1756716864650,2.23244411,109680.0,109670.0,0.00204]
[1756716865746,2.28131505,109680.0,109670.0,0.00204]
[1756716867452,1.43543505,109680.0,109670.0,0.00204]
[1756716867749,2.28131505,109680.0,109670.0,0.00204]
[1756716868551,1.43543505,109680.0,109670.0,0.00204]
[1756716868753,2.28127505,109680.0,109670.0,0.00204]
[1756716875557,2.28127882,109680.0,109670.0,0.00204]
[1756716877655,1.88592036,109680.0,109670.0,0.00204]
[1756716877954,2.28115882,109680.0,109670.0,0.00204]
[1756716883966,2.28111712,109680.0,109670.0,0.00204]
[1756716884266,2.23224618,109680.0,109670.0,0.00204]
[1756716884661,2.23208618,109680.0,109670.0,0.00204]
[1756716884858,1.38652618,109680.0,109670.0,0.02488]
[1756716885068,1.38652618,109680.0,109670.0,0.06108]
[1756716885266,1.98208618,109680.0,109670.0,0.06108]
[1756716888258,1.98208618,109680.0,109670.0,0.02488]
[1756716890366,2.03083712,109680.0,109670.0,0.02488]
[1756716890573,2.03083712,109680.0,109670.0,0.06107]
[1756716890776,2.03085752,109680.0,109670.0,0.06107]
[1756716891177,1.98198658,109680.0,109670.0,0.06107]
[1756716891373,2.03122455,109680.0,109670.0,0.06107]
[1756716891572,2.03122455,109680.0,109670.0,0.02488]
[1756716891978,1.98198658,109680.0,109670.0,0.06107]
[1756716893278,2.04741966,109680.0,109670.0,0.06107]
[1756716893476,2.04741966,109680.0,109670.0,0.02488]
[1756716893776,2.04741966,109680.0,109670.0,0.06107]
[1756716893976,1.98211568,109680.0,109670.0,0.06107]
[1756716894176,2.03134251,109680.0,109670.0,0.06107]
[1756716894368,2.03134251,109680.0,109670.0,0.00204]
[1756716894570,2.17985946,109680.0,109670.0,0.00204]
[1756716894770,2.17985946,109680.0,109670.0,0.00659]
[1756716894981,2.19862636,109680.0,109670.0,0.00659]
[1756716895876,2.53041157,109680.0,109640.0,0.05984]
[1756716896073,1.11708756,109650.0,109640.0,0.05984]
[1756716896269,2.00925244,109650.0,109640.0,0.05984]
[1756716896779,2.06760303,109650.0,109640.0,0.05984]
[1756716897477,2.01838649,109650.0,109640.0,0.05984]
[1756716897673,2.06760303,109650.0,109640.0,0.05984]
[1756716898074,2.06780425,109650.0,109640.0,0.05984]
[1756716898278,2.01858771,109650.0,109640.0,0.05984]
[1756716898578,2.01858771,109650.0,109640.0,0.06384]
[1756716899373,2.01858771,109650.0,109640.0,0.05984]
[1756716899580,2.01958771,109650.0,109640.0,0.05984]
[1756716900781,2.09167907,109650.0,109640.0,0.02365]
[1756716901683,2.09167907,109650.0,109630.0,0.05984]
[1756716901876,0.55864439,109640.0,109630.0,0.05984]
[1756716902181,0.57823251,109640.0,109630.0,0.05984]
[1756716902881,1.43255251,109640.0,109630.0,0.06084]
[1756716903081,1.43231251,109640.0,109630.0,0.06084]
[1756716903284,1.43231251,109640.0,109630.0,0.06184]
[1756716904378,1.23450812,109640.0,109630.0,0.06184]
[1756716904579,1.43235251,109640.0,109630.0,0.06184]
[1756716905884,1.23450812,109640.0,109630.0,0.06184]
[1756716906086,1.43235251,109640.0,109630.0,0.06184]
[1756716906484,1.43231251,109640.0,109630.0,0.06184]
[1756716906886,1.43247251,109640.0,109630.0,0.06184]
[1756716907084,0.38038812,109640.0,109630.0,0.06184]
[1756716907287,1.43247251,109640.0,109630.0,0.06184]
[1756716908286,0.57823251,109640.0,109630.0,0.06184]
[1756716908488,1.43207251,109640.0,109630.0,0.06184]
[1756716916088,1.43031251,109640.0,109630.0,0.06184]
[1756716917788,0.38038812,109640.0,109630.0,0.06184]
[1756716917990,0.38038812,109640.0,109630.0,0.82968439]
[1756716918294,1.23350812,109640.0,109630.0,0.85968439]
[1756716918490,1.23350812,109640.0,109630.0,0.31184]
[1756716918692,0.38038812,109640.0,109630.0,0.83968439]
[1756716918997,1.21392,109640.0,109630.0,0.83968439]
[1756716919198,1.2337631,109640.0,109630.0,0.83968439]
[1756716919503,1.21392,109640.0,109630.0,0.83968439]
[1756716919896,0.3608,109640.0,109630.0,0.83968439]
[1756716920095,1.21356,109640.0,109630.0,0.83968439]
[1756716925103,1.23345339,109640.0,109630.0,0.83968439]
[1756716926901,1.23189339,109640.0,109630.0,0.83968439]
[1756716927501,1.23165339,109640.0,109630.0,0.83968439]
[1756716929906,1.23165339,109640.0,109630.0,0.86968439]
[1756716933706,1.23165339,109640.0,109630.0,0.57968439]
[1756716933912,1.23165339,109640.0,109630.0,0.86968439]
[1756716935016,0.87085339,109640.0,109630.0,0.86968439]
[1756716935313,1.21176,109640.0,109630.0,0.86968439]
[1756716935514,1.21008,109640.0,109630.0,0.57968439]
[1756716935813,0.37921676,109650.0,109640.0,0.06169]
[1756716936009,1.22833676,109650.0,109640.0,0.84778549]
[1756716938016,1.22833676,109650.0,109640.0,0.65010177]